Cogmind - Beta 14 @@@ ROGUE MODE // 2024.09.06 @ 17:19:11 Player: FreshFromage Result: Destroyed by G-47 Trooper with Particle Gun Performance ------------- Evolutions (0) 0 Regions Visited (2) 400 Robots Destroyed (24) 120 Value Destroyed (696) 696 Prototype IDs (0) 0 Alien Tech Used (0) 0 Bonus (0) 0 TOTAL SCORE: 1216 Bonus ------- None Cogmind --------- Core Integrity 0/250 Matter 300/300 Energy 100/100 System Corruption 0% Temperature Cool (9) Movement Walking (190) Ox1 Location -10/Mines Parts ------- > --- POWER (1) -------- (None) > --- PROPULSION (2) --- Aluminum Leg Aluminum Leg > --- UTILITY (2) ------ Large Storage Unit Propulsion Shielding > --- WEAPON (2) ------- (None) > --- INVENTORY (15) --- Light Ion Engine Light Ion Engine Medium Storage Unit Large Battery (200) High-capacity Battery (250) Large Matter Pod (150) Sensor Array Signal Interpreter Peak State ------------ > --- POWER ------------ Ion Engine > --- PROPULSION ------- Light Treads Light Treads > --- UTILITY ---------- Improved Heat Sink Small Storage Unit > --- WEAPON ----------- Medium Laser Particle Gun > --- INVENTORY -------- Light Ion Engine Light Ion Engine Aluminum Leg Aluminum Leg High-capacity Battery Medium Matter Pod Small Laser Small Laser [Rating: 10] Favorites ----------- Power Ion Engine Engine Ion Engine Propulsion Light Treads Treads Light Treads Leg Aluminum Leg Utility Improved Heat Sink Device Improved Heat Sink Storage Small Storage Unit Protection Propulsion Shielding Weapon Medium Laser Energy Gun Medium Laser Build | -11 -10 -10 ------- Run | Yrd Mat Min Slots Evolved . | . . . Power . | . . . Propulsion . | . . . Utility . | . . . Weapon . | . . . Parts Attached 21 | 6 12 3 Power 4 | 1 3 . Engine 4 | 1 3 . Core . | . . . Reactor . | . . . Propulsion 6 | 2 2 2 Treads 4 | 2 2 . Leg 2 | . . 2 Wheel . | . . . Hover . | . . . Flight . | . . . Utility 5 | 1 3 1 Device 1 | . 1 . Storage 3 | 1 2 . Processor . | . . . Hackware . | . . . Protection 1 | . . 1 Artifact . | . . . Weapon 6 | 2 4 . Energy Gun 6 | 2 4 . Energy Cannon . | . . . Ballistic Gun . | . . . Ballistic Cannon . | . . . Launcher . | . . . Special Weapon . | . . . Impact Weapon . | . . . Slashing Weapon . | . . . Piercing Weapon . | . . . Special Melee Weapon . | . . . Unidentified Prototypes . | . . . Parts Lost 7 | . 2 5 Power 1 | . . 1 Propulsion 3 | . 2 1 Utility 1 | . . 1 Weapon 2 | . . 2 Highest Loss Streak 4 | . 1 4 To Critical Strikes . | . . . Average Slot Usage (%) 83 | . 89 59 Engine 12 | . 13 6 Treads 16 | . 19 5 Leg 3 | . . 15 Device 10 | . 13 . Storage 14 | . 14 14 Energy Gun 24 | . 28 12 Peak Build Rating 10 | 6 10 10 Average Rating 8 | 4 8 5 On Entrance 5 | . 6 10 Naked Turns . | . . . Heaviest Build 31 | 11 31 30 Greatest Support 40 | 40 40 20 Greatest Overweight (x) 5 | . 5 1 Average Overweight (x) . | . . . Largest Inventory Capacity 15 | 8 15 15 Average Capacity 10 | 6 9 15 Most Carried 10 | 3 10 10 Average Carried 7 | 1 6 8 Final Capacity 15 | 8 15 15 Final Carried 10 | 3 10 8 Class Distribution -------------------- 98% | Mutant Dominant Class ---------------- Mutant | -10/Materials Mutant | -10/Mines Resources | -11 -10 -10 ----------- Run | Yrd Mat Min Matter Collected 636 | 215 355 66 Remotely . | . . . Salvage Created 806 | . 696 110 Parts 41 | . 37 4 Haulers Intercepted 2 | . 2 . Recyclers Shooed . | . . . Parts Field Recycled . | . . . Retrieved Matter . | . . . Parts Self-Destructed . | . . . Prevented . | . . . Kills | -11 -10 -10 ------- Run | Yrd Mat Min Combat Hostiles Destroyed 20 | . 15 5 Melee 2 | . . 2 Guns 17 | . 14 3 Classes Destroyed 4 | . 3 1 Hauler 2 | . 2 . Watcher 2 | . 2 . Swarmer 3 | . . 3 Grunt 17 | . 15 2 Best Kill Streak 2 | . 2 2 Combat Bots Only 2 | . 2 2 Max Kills in Single Turn 1 | . 1 1 Gunslinging . | . . . Exploded . | . . . Melee 1 | . . 1 Uniques/NPCs Destroyed . | . . . Combat | -11 -10 -10 -------- Run | Yrd Mat Min Hostile Shots Fired 134 | . 80 54 Missed 33 | . 21 12 Damage Taken 1149 | . 726 423 Core 256 | . 106 150 Absorbed by Shields . | . . . Redirected to Shielding 5 | . . 5 Core Remaining (%) 100 | 100 . . Volleys Fired 82 | . 73 9 Largest 2 | . 2 2 Hottest 115 | . 115 115 Shots Fired 164 | . 146 18 Gun 164 | . 146 18 Cannon . | . . . Launcher . | . . . Special . | . . . Kinetic . | . . . Thermal 164 | . 146 18 Explosive . | . . . Electromagnetic . | . . . Robot Hit Streak 11 | . 11 5 Robot Miss Streak 3 | . 3 2 Penetration Max . | . . . Secondary Targets 2 | . 1 1 Max Gunslinging Chain 1 | . 1 1 Shots Hit Robots 117 | . 105 12 Core Hits 46 | . 35 11 Critical Kills . | . . . Critical Parts Destroyed . | . . . Critical Strikes 7 | . 5 2 Burn 7 | . 5 2 Melee Attacks . | . . . Impact . | . . . Slashing . | . . . Piercing . | . . . Sneak Attacks . | . . . Combat Hostiles . | . . . Follow-up Attacks . | . . . Damage Inflicted 1710 | . 1473 237 Guns 1637 | . 1459 178 Cannons . | . . . Explosions . | . . . Melee . | . . . Ramming 73 | . 14 59 Kinetic . | . . . Thermal 1637 | . 1459 178 Explosive . | . . . Electromagnetic . | . . . Impact . | . . . Slashing . | . . . Piercing . | . . . Highest Corruption . | . . . Average Corruption . | . . . Corruption Purged . | . . . Corruption Blocked . | . . . Overload Shots . | . . . Overflow Damage . | . . . Projectiles . | . . . Explosions . | . . . Melee . | . . . Knockbacks . | . . . Impact . | . . . Kinetic . | . . . Secondary . | . . . Self-Inflicted Damage . | . . . Shots . | . . . Rammed 3 | . 3 . Targets Rammed 25 | . 3 22 Kicked 22 | . . 22 Crushed . | . . . Highest Temperature 368 | . 261 368 Average Temperature 80 | . 59 155 Received Heat Transfer 534 | . 420 114 Effects 1 | . . 1 Shutdowns 1 | . . 1 Siege Activations . | . . . Robots Corrupted . | . . . Combat Hostiles . | . . . Parts Fried . | . . . Impact Corruptions . | . . . Robots Melted 1 | . 1 . Combat Hostiles 1 | . 1 . Parts Melted 10 | . 8 2 Heat Transferred 4684 | . 4055 629 Parts Sabotaged . | . . . Parts Stolen . | . . . Parts Stripped . | . . . Power Chain Reactions . | . . . Alert | -11 -10 -10 ------- Run | Yrd Mat Min Peak Influence 239 | . 239 80 Initial . | . . . Average 94 | . 106 61 Maximum Alert Level 1 | . 1 . Low Security (%) 97 | 100 97 100 Level 1 2 | . 2 . Level 2 . | . . . Level 3 . | . . . Level 4 . | . . . Level 5 . | . . . High Security . | . . . Max Security . | . . . Squads Dispatched 4 | . 4 . Investigation 2 | . 2 . Extermination . | . . . Reinforcement 2 | . 2 . Assault . | . . . Garrison . | . . . Intercept . | . . . Searches Triggered . | . . . Construction Impeded . | . . . Haulers Reinforced . | . . . Active Scanning Responses . | . . . Cargo Convoy Interrupts . | . . . Stealth | -11 -10 -10 --------- Run | Yrd Mat Min Distress Signals 3 | . 3 . Communications Jammed . | . . . Distress Signals . | . . . Times Spotted 33 | . 26 7 Peak Tracking Total 3 | . 3 3 Tactical Retreats 1 | . 1 . Traps | -11 -10 -10 ------- Run | Yrd Mat Min Traps Triggered 1 | . 1 . Indirectly . | . . . Trap Hack Attempts . | . . . Triggered . | . . . Disarmed . | . . . Reprogrammed . | . . . Reused . | . . . Traps Extracted . | . . . Installed . | . . . Triggered . | . . . Machines | -11 -10 -10 ---------- Run | Yrd Mat Min Machines Disabled . | . . . Max in Single Turn . | . . . Machines Repaired . | . . . Machines Dismantled . | . . . Machines Sabotaged . | . . . Overloaded Fab Kills . | . . . Hacking | -11 -10 -10 --------- Run | Yrd Mat Min Machines Accessed 9 | . 8 1 Terminals 6 | . 6 . Fabricators . | . . . Repair Stations . | . . . Recycling Units 2 | . 2 . Scanalyzers . | . . . Garrison Access . | . . . Total Hacks 20 | . 19 1 Successful 13 | . 12 1 Failed 7 | . 7 . Catastrophic 1 | . 1 . Database Lockouts . | . . . Manual 12 | . 12 . Terminals 17 | . 17 . Fabricators . | . . . Repair Stations . | . . . Recycling Units 2 | . 2 . Scanalyzers . | . . . Garrison Access . | . . . Terminal Hacks 5 | . 4 1 Robot Analysis 2 | . 2 . Open Door 1 | . . 1 Unreport Threat 1 | . 1 . Locate Traps 1 | . 1 . Fabricator Hacks . | . . . Repair Station Hacks . | . . . Recycling Unit Hacks . | . . . Scanalyzer . | . . . Garrison Access Hacks . | . . . Unauthorized Hacks 8 | . 8 . Terminals 6 | . 6 . Botnet 2 | . 2 . Skim 4 | . 4 . Fabricators . | . . . Repair Stations . | . . . Recycling Units 2 | . 2 . Tunnel 2 | . 2 . Scanalyzers . | . . . Garrison Access . | . . . Data Cores Recovered . | . . . Used . | . . . Hacking Detections 6 | . 6 . Full Trace Events . | . . . Feedback Events . | . . . Feedback Blocked . | . . . Robot Schematics Acquired . | . . . Robots Built . | . . . Authchips . | . . . Time . | . . . Total Robot Build Rating . | . . . Part Schematics Acquired . | . . . Parts Built . | . . . Authchips . | . . . Time . | . . . Total Part Build Rating . | . . . Parts Repaired . | . . . Time . | . . . Parts Recycled . | . . . Recycled Matter . | . . . Retrieved Matter . | . . . Retrieved Components . | . . . Parts Scanalyzed . | . . . Part Schematics Acquired . | . . . Parts Damaged . | . . . Bothacking | -11 -10 -10 ------------ Run | Yrd Mat Min Used RIF Installer . | . . . Robots Hacked . | . . . Non-combat . | . . . Combat . | . . . Robot Hacks Applied . | . . . Relay Couplers Released . | . . . Fabnet Peak Effective % . | . . . Robots Rewired . | . . . Allies Hacked . | . . . Hacks Repelled . | . . . Allies | -11 -10 -10 -------- Run | Yrd Mat Min Total Allies . | . . . Largest Group . | . . . Highest-Rated Group . | . . . Highest-Rated Ally . | . . . Total Orders . | . . . Ally Attacks . | . . . Total Damage . | . . . Kills . | . . . Allies Corrupted . | . . . Allies Melted . | . . . Intel | -11 -10 -10 ------- Run | Yrd Mat Min Robot Analysis Total 2 | . 2 . Derelict Logs Recovered 1 | . . 1 Drone Launches . | . . . Drone Recoveries . | . . . Exploration | -11 -10 -10 ------------- Run | Yrd Mat Min Turns Passed 1948 | 62 1505 381 Spaces Moved 894 | 34 691 169 Core 6 | 4 2 . Treads 772 | 30 689 53 Legs 116 | . . 116 Wheels . | . . . Hover . | . . . Flight . | . . . Fastest Speed 50 | 50 160 120 Average Speed 173 | 147 172 181 Slowest Speed 300 | 160 300 240 Overloaded Moves . | . . . Propulsion Burnouts . | . . . Robots Hopped . | . . . Cave-ins Triggered . | . . . Exploration Rate (%) 44 | 4 94 34 Regions Visited 2 Branch Regions 1 Pre-discovered Areas 3 | . 2 1 Known Exits Taken . | . . . Unknown Exits Taken 2 | 1 1 . Scrap Searched 1 | . . 1 Spaces Dug . | . . . Terrain Destroyed . | . . . Melee . | . . . Projectile . | . . . AOE . | . . . Terrain Rammed . | . . . Walls Destroyed . | . . . Machines Disabled . | . . . Actions | -11 -10 -10 --------- Run | Yrd Mat Min Total 1116 | 43 854 219 Wait 81 | 1 64 16 Move 892 | 33 690 169 Hop . | . . . Pick Up 9 | 3 6 . Fast Attach 12 | 6 5 1 Attach 2 | . . 2 Detach . | . . . Swap 7 | . 7 . Drop 6 | . 6 . Fire 82 | . 73 9 Melee . | . . . Ram . | . . . Kick 22 | . . 22 Crush 3 | . 3 . Escape Stasis . | . . . Rewire . | . . . Trap . | . . . Miscellaneous . | . . . Route ------- -11/Scrapyard -10/Materials (discovered 5 exits: [*Mat x3] / *Min x2) -10/Mines History --------- Turn | Location | Event 10 | -11/Scrapyard | Discovered new exit (range 14) 63 | -11/Scrapyard | Entered Materials 301 | -10/Materials | Build established: Mutant 311 | -10/Materials | Discovered new exit (range 5) 695 | -10/Materials | Discovered new exit (range 14) 878 | -10/Materials | Discovered new exit (range 15) 1278 | -10/Materials | Discovered new exit (range 10) 1439 | -10/Materials | Discovered new exit (range 3) 1568 | -10/Materials | Entered Mines 1583 | -10/Mines | Core integrity fell below 50% 1667 | -10/Mines | Found the Drone Emporium 1767 | -10/Mines | Lost 4 parts (1p1n2w) 1771 | -10/Mines | Core integrity fell below 20% 1949 | -10/Mines | Destroyed by G-47 Trooper with Particle Gun Last Messages --------------- 01757_ S-10 Pest destroyed. 01758_ Acquired 11 matter. 01758_ Kicked S-10 Pest out of the way. 01761_ Kicked S-10 Pest. 01763_ Kicked S-10 Pest out of the way. 01766_ R-06 Scavenger collects Flight Unit. 01767_ Kicked S-10 Pest out of the way. 01770_ Kicked S-10 Pest. 01775_ Kicked S-10 Pest out of the way. 01775_ S-10 Pest destroyed. 01785_ Kicked R-06 Scavenger. 01824_ Kicked R-06 Scavenger out of the way. 01828_ Searching scrap... 01828_ Found Datajack. 01828_ Found Propulsion Shielding. 01828_ Found 31 Matter. 01830_ Acquired Propulsion Shielding. 01832_ Acquired 10 matter. 01834_ Kicked R-06 Scavenger. 01856_ K-01 Serf collects debris. Map ----- +----------------------------------------------------+ | ??????????????????????????????????????# # | | ???????????????????????????????????#### # | | ??????????????????????????????????##""## # | | ??????????????????????????????????#" # # | | ??????????????????????????????????#"! # | | ??????????????????????????????????#" # | | ??????????????????????????????????#" #X # | | ??????????????????????????????????#???## | | ??????????????????????????????????????# # | | ??????????????????????????????????????# # | | ??????????????????????????????????????############ | | ???????????????????????????????????###???????????? | | ??????????????????????????????????## #??????###### | | ??????????#??????????????????????## #??????# | | ??????????# ????????????????????## ##??????# | | ??????????# ???????????????????## ##???????# % | | ??????????# ??????????????????# ##???????# """ | | ???????#??# ?????????????????# ##??????# """ | | ?????? ## ????????????????# #??????# """ | | ?????? ????????????????# #??????###### | | ?????? ?????????####### #?????????### | | ????? ????????# ##???????## | | ?????? ???????# ##??????# | | ???????? #??????# ###### #??????# | | ?????????????# g#######k#??## ##?????## | | ??????????????# g @ #??# ##?????## | | ??????????????## ##########??# #?????## | | ???????????????#??????????????## #????## | | ???????????????????????????????## #???## | | ????????????????????????????????# /###### # | | ????????????????????????????????# %% % # | | ????????????????????????????????## # | | ?????????????????????????????????# ####### | | ?????????????????????????????????# ?????# | | ????????????????????????????????# ?????# | | ???????????????????????????????# ?????## # | | ???????????????????????????????# ??????#### | | ???????????????????????????????# #?????????? | | ???????????????????????????????# ??????????? | | ???????????????????????????????# ??????????? | | ???????????????????????????????# ???????????? | | ???????????????????????????????## ???????????? | | ????????????????????????????????# ???????????? | | ??????????????????????????????????? ???????????? | | ?????????????????????????????????????????????????? | | ?????????????????????????????????????????????????? | | ?????????????????????????????????????????????????? | | ?????????????????????????????????????????????????? | | ?????????????????????????????????????????????????? | | ?????????????????????????????????????????????????? | +----------------------------------------------------+ Best States ------------- Heat Dissipation 39 Energy Generation 10 Energy Capacity 250 Matter Stores 300 Matter Capacity 300 Sight Range 16 Terrain Scan Density 10 Propulsion Shielding 33 Evasion (%) 55 Recoil Reduction 2 Item Schematics ----------------- None Robot Schematics ------------------ None Fabricated ------------ Nothing Alien Tech Used ----------------- None Achievements -------------- None Challenges ------------ None Game ------ Seed TargetGatlingStorm Manual? 0 Play Time 00:17:38 Cumulative 71.2 hours Start 2024.09.06 @ 17:02:33 End 2024.09.06 @ 17:19:11 Sessions 1 Manual Loads 0 Difficulty Rogue Special Mode None Game No. 36 Rogue 36 Adventurer 0 Explorer 0 Win Type - Total 2 Types 2/0/0/0/0/0/0/0/0 Lore% 29 Gallery% 37 Achievement% 36 Wizard Run 0 Options --------- Layout 1 ASCII 0 Keyboard 0 Movement Vi Keybinds 0 Fullscreen 1 Font 24/Smallcaps Map View 50x35 Zoom Use 0% Tactical HUD 1 Map Filters NONE Filters NONE Steam 1 RUN: d71be0a3-da4c-487d-94df-6bef99fce9c3